Workbook

Sheet raw_Data
A1: Stock Market Data Used in "Irrational Exuberance" Princeton University Press, 2000, 2005, 2015, updated
A2: Robert J. Shiller
E4: Consumer
B5: S&P | E5: Price | G5: Long
B6: Comp. | C6: Dividend | D6: Earnings | E6: Index | F6: Date | G6: Interest
A7: Date | B7: P | C7: D | D7: E | E7: CPI | F7: Fraction | G7: Rate GS10
A8: 1871.01 | B8: 4.44 | C8: 0.26 | D8: 0.40 | E8: 12.46 | F8: =1871+1/24 -> 1871.04 | G8: 5.32
A9: 1871.02 | B9: 4.50 | C9: 0.26 | D9: 0.40 | E9: 12.84 | F9: =F8+1/12 -> 1871.13 | G9: =G8*11/12+G20*1/12 -> 5.32
A10: 1871.03 | B10: 4.61 | C10: 0.26 | D10: 0.40 | E10: 13.03 | F10: 1871.21 | G10: =G8*10/12+G20*2/12 -> 5.33
A11: 1871.04 | B11: 4.74 | C11: 0.26 | D11: 0.40 | E11: 12.56 | F11: 1871.29 | G11: =G8*9/12+G20*3/12 -> 5.33
A12: 1871.05 | B12: 4.86 | C12: 0.26 | D12: 0.40 | E12: 12.27 | F12: 1871.38 | G12: =G8*8/12+G20*4/12 -> 5.33
A13: 1871.06 | B13: 4.82 | C13: 0.26 | D13: 0.40 | E13: 12.08 | F13: 1871.46 | G13: =G8*7/12+G20*5/12 -> 5.34
A14: 1871.07 | B14: 4.73 | C14: 0.26 | D14: 0.40 | E14: 12.08 | F14: 1871.54 | G14: =G8*6/12+G20*6/12 -> 5.34
A15: 1871.08 | B15: 4.79 | C15: 0.26 | D15: 0.40 | E15: 11.89 | F15: 1871.63 | G15: =G8*5/12+G20*7/12 -> 5.34
A16: 1871.09 | B16: 4.84 | C16: 0.26 | D16: 0.40 | E16: 12.18 | F16: 1871.71 | G16: =G8*4/12+G20*8/12 -> 5.35
A17: 1871.10 | B17: 4.59 | C17: 0.26 | D17: 0.40 | E17: 12.37 | F17: 1871.79 | G17: =G8*3/12+G20*9/12 -> 5.35
A18: 1871.11 | B18: 4.64 | C18: 0.26 | D18: 0.40 | E18: 12.37 | F18: 1871.88 | G18: =G8*2/12+G20*10/12 -> 5.35
A19: 1871.12 | B19: 4.74 | C19: 0.26 | D19: 0.40 | E19: 12.65 | F19: 1871.96 | G19: =G8*1/12+G20*11/12 -> 5.36
A20: 1872.01 | B20: 4.86 | C20: 0.26 | D20: 0.40 | E20: 12.65 | F20: 1872.04 | G20: 5.36
A21: 1872.02 | B21: 4.88 | C21: 0.27 | D21: 0.41 | E21: 12.65 | F21: 1872.13 | G21: =G20*11/12+G32*1/12 -> 5.38
A22: 1872.03 | B22: 5.04 | C22: 0.27 | D22: 0.41 | E22: 12.84 | F22: 1872.21 | G22: =G20*10/12+G32*2/12 -> 5.40
A23: 1872.04 | B23: 5.18 | C23: 0.27 | D23: 0.41 | E23: 13.13 | F23: 1872.29 | G23: =G20*9/12+G32*3/12 -> 5.42
A24: 1872.05 | B24: 5.18 | C24: 0.28 | D24: 0.41 | E24: 13.13 | F24: 1872.38 | G24: =G20*8/12+G32*4/12 -> 5.43
A25: 1872.06 | B25: 5.13 | C25: 0.28 | D25: 0.42 | E25: 13.03 | F25: 1872.46 | G25: =G20*7/12+G32*5/12 -> 5.45
A26: 1872.07 | B26: 5.10 | C26: 0.28 | D26: 0.42 | E26: 12.84 | F26: 1872.54 | G26: =G20*6/12+G32*6/12 -> 5.47
A27: 1872.08 | B27: 5.04 | C27: 0.29 | D27: 0.42 | E27: 12.94 | F27: 1872.63 | G27: =G20*5/12+G32*7/12 -> 5.49
A28: 1872.09 | B28: 4.95 | C28: 0.29 | D28: 0.42 | E28: 13.03 | F28: 1872.71 | G28: =G20*4/12+G32*8/12 -> 5.51
A29: 1872.10 | B29: 4.97 | C29: 0.29 | D29: 0.43 | E29: 12.75 | F29: 1872.79 | G29: =G20*3/12+G32*9/12 -> 5.53
A30: 1872.11 | B30: 4.95 | C30: 0.30 | D30: 0.43 | E30: 13.13 | F30: 1872.88 | G30: =G20*2/12+G32*10/12 -> 5.54
A31: 1872.12 | B31: 5.07 | C31: 0.30 | D31: 0.43 | E31: 12.94 | F31: 1872.96 | G31: =G20*1/12+G32*11/12 -> 5.56
A32: 1873.01 | B32: 5.11 | C32: 0.30 | D32: 0.43 | E32: 12.94 | F32: 1873.04 | G32: 5.58
A33: 1873.02 | B33: 5.15 | C33: 0.31 | D33: 0.44 | E33: 13.23 | F33: 1873.13 | G33: =G32*11/12+G44*1/12 -> 5.57
A34: 1873.03 | B34: 5.11 | C34: 0.31 | D34: 0.44 | E34: 13.23 | F34: 1873.21 | G34: =G32*10/12+G44*2/12 -> 5.56
A35: 1873.04 | B35: 5.04 | C35: 0.31 | D35: 0.44 | E35: 13.23 | F35: 1873.29 | G35: =G32*9/12+G44*3/12 -> 5.55
A36: 1873.05 | B36: 5.05 | C36: 0.31 | D36: 0.44 | E36: 12.94 | F36: 1873.38 | G36: =G32*8/12+G44*4/12 -> 5.54
A37: 1873.06 | B37: 4.98 | C37: 0.32 | D37: 0.45 | E37: 12.56 | F37: 1873.46 | G37: =G32*7/12+G44*5/12 -> 5.53
A38: 1873.07 | B38: 4.97 | C38: 0.32 | D38: 0.45 | E38: 12.56 | F38: 1873.54 | G38: =G32*6/12+G44*6/12 -> 5.53
A39: 1873.08 | B39: 4.97 | C39: 0.32 | D39: 0.45 | E39: 12.56 | F39: 1873.63 | G39: =G32*5/12+G44*7/12 -> 5.52
A40: 1873.09 | B40: 4.59 | C40: 0.32 | D40: 0.45 | E40: 12.56 | F40: 1873.71 | G40: =G32*4/12+G44*8/12 -> 5.51
A41: 1873.10 | B41: 4.19 | C41: 0.33 | D41: 0.46 | E41: 12.27 | F41: 1873.79 | G41: =G32*3/12+G44*9/12 -> 5.50
A42: 1873.11 | B42: 4.04 | C42: 0.33 | D42: 0.46 | E42: 11.89 | F42: 1873.88 | G42: =G32*2/12+G44*10/12 -> 5.49
A43: 1873.12 | B43: 4.42 | C43: 0.33 | D43: 0.46 | E43: 12.18 | F43: 1873.96 | G43: =G32*1/12+G44*11/12 -> 5.48
A44: 1874.01 | B44: 4.66 | C44: 0.33 | D44: 0.46 | E44: 12.37 | F44: 1874.04 | G44: 5.47
A45: 1874.02 | B45: 4.80 | C45: 0.33 | D45: 0.46 | E45: 12.37 | F45: 1874.13 | G45: =G44*11/12+G56*1/12 -> 5.44
A46: 1874.03 | B46: 4.73 | C46: 0.33 | D46: 0.46 | E46: 12.37 | F46: 1874.21 | G46: =G44*10/12+G56*2/12 -> 5.40
A47: 1874.04 | B47: 4.60 | C47: 0.33 | D47: 0.46 | E47: 12.18 | F47: 1874.29 | G47: =G44*9/12+G56*3/12 -> 5.37
A48: 1874.05 | B48: 4.48 | C48: 0.33 | D48: 0.46 | E48: 12.08 | F48: 1874.38 | G48: =G44*8/12+G56*4/12 -> 5.34
A49: 1874.06 | B49: 4.46 | C49: 0.33 | D49: 0.46 | E49: 11.80 | F49: 1874.46 | G49: =G44*7/12+G56*5/12 -> 5.30
A50: 1874.07 | B50: 4.46 | C50: 0.33 | D50: 0.46 | E50: 11.89 | F50: 1874.54 | G50: =G44*6/12+G56*6/12 -> 5.27
A51: 1874.08 | B51: 4.47 | C51: 0.33 | D51: 0.46 | E51: 11.80 | F51: 1874.63 | G51: =G44*5/12+G56*7/12 -> 5.24
A52: 1874.09 | B52: 4.54 | C52: 0.33 | D52: 0.46 | E52: 11.80 | F52: 1874.71 | G52: =G44*4/12+G56*8/12 -> 5.20
A53: 1874.10 | B53: 4.53 | C53: 0.33 | D53: 0.46 | E53: 11.61 | F53: 1874.79 | G53: =G44*3/12+G56*9/12 -> 5.17
A54: 1874.11 | B54: 4.57 | C54: 0.33 | D54: 0.46 | E54: 11.51 | F54: 1874.88 | G54: =G44*2/12+G56*10/12 -> 5.14
A55: 1874.12 | B55: 4.54 | C55: 0.33 | D55: 0.46 | E55: 11.51 | F55: 1874.96 | G55: =G44*1/12+G56*11/12 -> 5.10
A56: 1875.01 | B56: 4.54 | C56: 0.33 | D56: 0.45 | E56: 11.51 | F56: 1875.04 | G56: 5.07
A57: 1875.02 | B57: 4.53 | C57: 0.33 | D57: 0.44 | E57: 11.51 | F57: 1875.13 | G57: =G56*11/12+G68*1/12 -> 5.03
A58: 1875.03 | B58: 4.59 | C58: 0.32 | D58: 0.44 | E58: 11.51 | F58: 1875.21 | G58: =G56*10/12+G68*2/12 -> 4.99
A59: 1875.04 | B59: 4.65 | C59: 0.32 | D59: 0.43 | E59: 11.61 | F59: 1875.29 | G59: =G56*9/12+G68*3/12 -> 4.95
A60: 1875.05 | B60: 4.47 | C60: 0.32 | D60: 0.42 | E60: 11.32 | F60: 1875.38 | G60: =G56*8/12+G68*4/12 -> 4.91
A61: 1875.06 | B61: 4.38 | C61: 0.32 | D61: 0.41 | E61: 11.13 | F61: 1875.46 | G61: =G56*7/12+G68*5/12 -> 4.87
A62: 1875.07 | B62: 4.39 | C62: 0.31 | D62: 0.40 | E62: 11.13 | F62: 1875.54 | G62: =G56*6/12+G68*6/12 -> 4.83
A63: 1875.08 | B63: 4.41 | C63: 0.31 | D63: 0.39 | E63: 11.23 | F63: 1875.63 | G63: =G56*5/12+G68*7/12 -> 4.79
A64: 1875.09 | B64: 4.37 | C64: 0.31 | D64: 0.39 | E64: 11.13 | F64: 1875.71 | G64: =G56*4/12+G68*8/12 -> 4.75
A65: 1875.10 | B65: 4.30 | C65: 0.31 | D65: 0.38 | E65: 11.13 | F65: 1875.79 | G65: =G56*3/12+G68*9/12 -> 4.71
A66: 1875.11 | B66: 4.37 | C66: 0.30 | D66: 0.37 | E66: 11.04 | F66: 1875.88 | G66: =G56*2/12+G68*10/12 -> 4.67
A67: 1875.12 | B67: 4.37 | C67: 0.30 | D67: 0.36 | E67: 10.94 | F67: 1875.96 | G67: =G56*1/12+G68*11/12 -> 4.63
A68: 1876.01 | B68: 4.46 | C68: 0.30 | D68: 0.35 | E68: 10.85 | F68: 1876.04 | G68: 4.59
A69: 1876.02 | B69: 4.52 | C69: 0.30 | D69: 0.35 | E69: 10.85 | F69: 1876.13 | G69: =G68*11/12+G80*1/12 -> 4.58
A70: 1876.03 | B70: 4.51 | C70: 0.30 | D70: 0.34 | E70: 10.85 | F70: 1876.21 | G70: =G68*10/12+G80*2/12 -> 4.57
A71: 1876.04 | B71: 4.34 | C71: 0.30 | D71: 0.33 | E71: 10.75 | F71: 1876.29 | G71: =G68*9/12+G80*3/12 -> 4.56
A72: 1876.05 | B72: 4.18 | C72: 0.30 | D72: 0.33 | E72: 10.37 | F72: 1876.38 | G72: =G68*8/12+G80*4/12 -> 4.54
A73: 1876.06 | B73: 4.15 | C73: 0.30 | D73: 0.32 | E73: 10.09 | F73: =F72+1/12 -> 1876.46 | G73: =G68*7/12+G80*5/12 -> 4.53
A74: 1876.07 | B74: 4.10 | C74: 0.30 | D74: 0.31 | E74: 10.09 | F74: 1876.54 | G74: =G68*6/12+G80*6/12 -> 4.52
A75: 1876.08 | B75: 3.93 | C75: 0.30 | D75: 0.31 | E75: 10.18 | F75: 1876.62 | G75: =G68*5/12+G80*7/12 -> 4.51
A76: 1876.09 | B76: 3.69 | C76: 0.30 | D76: 0.30 | E76: 10.28 | F76: 1876.71 | G76: =G68*4/12+G80*8/12 -> 4.50
A77: 1876.10 | B77: 3.67 | C77: 0.30 | D77: 0.29 | E77: 10.47 | F77: 1876.79 | G77: =G68*3/12+G80*9/12 -> 4.49
A78: 1876.11 | B78: 3.60 | C78: 0.30 | D78: 0.29 | E78: 10.56 | F78: 1876.87 | G78: =G68*2/12+G80*10/12 -> 4.47
A79: 1876.12 | B79: 3.58 | C79: 0.30 | D79: 0.28 | E79: 10.75 | F79: 1876.96 | G79: =G68*1/12+G80*11/12 -> 4.46
A80: 1877.01 | B80: 3.55 | C80: 0.29 | D80: 0.28 | E80: 10.94 | F80: 1877.04 | G80: 4.45
A81: 1877.02 | B81: 3.34 | C81: 0.28 | D81: 0.28 | E81: 10.66 | F81: 1877.12 | G81: =G80*11/12+G92*1/12 -> 4.44
A82: 1877.03 | B82: 3.17 | C82: 0.27 | D82: 0.29 | E82: 10.18 | F82: 1877.21 | G82: =G80*10/12+G92*2/12 -> 4.43
A83: 1877.04 | B83: 2.94 | C83: 0.26 | D83: 0.29 | E83: 10.47 | F83: 1877.29 | G83: =G80*9/12+G92*3/12 -> 4.42
A84: 1877.05 | B84: 2.94 | C84: 0.25 | D84: 0.29 | E84: 10.66 | F84: 1877.37 | G84: =G80*8/12+G92*4/12 -> 4.41
A85: 1877.06 | B85: 2.73 | C85: 0.25 | D85: 0.29 | E85: 10.09 | F85: 1877.46 | G85: =G80*7/12+G92*5/12 -> 4.40
A86: 1877.07 | B86: 2.85 | C86: 0.24 | D86: 0.29 | E86: 10.18 | F86: 1877.54 | G86: =G80*6/12+G92*6/12 -> 4.40
A87: 1877.08 | B87: 3.05 | C87: 0.23 | D87: 0.29 | E87: 9.80 | F87: 1877.62 | G87: =G80*5/12+G92*7/12 -> 4.39
A88: 1877.09 | B88: 3.24 | C88: 0.22 | D88: 0.30 | E88: 9.70 | F88: 1877.71 | G88: =G80*4/12+G92*8/12 -> 4.38
A89: 1877.10 | B89: 3.31 | C89: 0.21 | D89: 0.30 | E89: 9.70 | F89: 1877.79 | G89: =G80*3/12+G92*9/12 -> 4.37
A90: 1877.11 | B90: 3.26 | C90: 0.20 | D90: 0.30 | E90: 9.51 | F90: 1877.87 | G90: =G80*2/12+G92*10/12 -> 4.36
A91: 1877.12 | B91: 3.25 | C91: 0.19 | D91: 0.30 | E91: 9.51 | F91: 1877.96 | G91: =G80*1/12+G92*11/12 -> 4.35
A92: 1878.01 | B92: 3.25 | C92: 0.19 | D92: 0.30 | E92: 9.23 | F92: 1878.04 | G92: 4.34
A93: 1878.02 | B93: 3.18 | C93: 0.19 | D93: 0.30 | E93: 9.13 | F93: 1878.12 | G93: =G92*11/12+G104*1/12 -> 4.33
A94: 1878.03 | B94: 3.24 | C94: 0.19 | D94: 0.30 | E94: 8.94 | F94: 1878.21 | G94: =G92*10/12+G104*2/12 -> 4.32
A95: 1878.04 | B95: 3.33 | C95: 0.19 | D95: 0.30 | E95: 8.85 | F95: 1878.29 | G95: =G92*9/12+G104*3/12 -> 4.31
A96: 1878.05 | B96: 3.34 | C96: 0.19 | D96: 0.30 | E96: 8.56 | F96: 1878.37 | G96: =G92*8/12+G104*4/12 -> 4.30
A97: 1878.06 | B97: 3.41 | C97: 0.19 | D97: 0.31 | E97: 8.37 | F97: 1878.46 | G97: =G92*7/12+G104*5/12 -> 4.29
A98: 1878.07 | B98: 3.48 | C98: 0.18 | D98: 0.31 | E98: 8.47 | F98: 1878.54 | G98: =G92*6/12+G104*6/12 -> 4.28
A99: 1878.08 | B99: 3.45 | C99: 0.18 | D99: 0.31 | E99: 8.56 | F99: 1878.62 | G99: =G92*5/12+G104*7/12 -> 4.27
A100: 1878.09 | B100: 3.52 | C100: 0.18 | D100: 0.31 | E100: 8.56 | F100: 1878.71 | G100: =G92*4/12+G104*8/12 -> 4.26
A101: 1878.10 | B101: 3.48 | C101: 0.18 | D101: 0.31 | E101: 8.47 | F101: 1878.79 | G101: =G92*3/12+G104*9/12 -> 4.25
A102: 1878.11 | B102: 3.47 | C102: 0.18 | D102: 0.31 | E102: 8.37 | F102: 1878.87 | G102: =G92*2/12+G104*10/12 -> 4.24
A103: 1878.12 | B103: 3.45 | C103: 0.18 | D103: 0.31 | E103: 8.18 | F103: 1878.96 | G103: =G92*1/12+G104*11/12 -> 4.23
A104: 1879.01 | B104: 3.58 | C104: 0.18 | D104: 0.32 | E104: 8.28 | F104: 1879.04 | G104: 4.22
A105: 1879.02 | B105: 3.71 | C105: 0.18 | D105: 0.32 | E105: 8.37 | F105: 1879.12 | G105: =G104*11/12+G116*1/12 -> 4.20
A106: 1879.03 | B106: 3.65 | C106: 0.19 | D106: 0.33 | E106: 8.28 | F106: 1879.21 | G106: =G104*10/12+G116*2/12 -> 4.19
A107: 1879.04 | B107: 3.77 | C107: 0.19 | D107: 0.33 | E107: 8.18 | F107: 1879.29 | G107: =G104*9/12+G116*3/12 -> 4.17
A108: 1879.05 | B108: 3.94 | C108: 0.19 | D108: 0.34 | E108: 8.18 | F108: 1879.37 | G108: =G104*8/12+G116*4/12 -> 4.15
A109: 1879.06 | B109: 3.96 | C109: 0.19 | D109: 0.35 | E109: 8.09 | F109: 1879.46 | G109: =G104*7/12+G116*5/12 -> 4.14
A110: 1879.07 | B110: 4.04 | C110: 0.19 | D110: 0.35 | E110: 8.18 | F110: 1879.54 | G110: =G104*6/12+G116*6/12 -> 4.12
A111: 1879.08 | B111: 4.07 | C111: 0.19 | D111: 0.36 | E111: 8.18 | F111: 1879.62 | G111: =G104*5/12+G116*7/12 -> 4.10
A112: 1879.09 | B112: 4.22 | C112: 0.20 | D112: 0.36 | E112: 8.47 | F112: 1879.71 | G112: =G104*4/12+G116*8/12 -> 4.09
A113: 1879.10 | B113: 4.68 | C113: 0.20 | D113: 0.37 | E113: 8.94 | F113: 1879.79 | G113: =G104*3/12+G116*9/12 -> 4.07
A114: 1879.11 | B114: 4.93 | C114: 0.20 | D114: 0.37 | E114: 9.42 | F114: 1879.87 | G114: =G104*2/12+G116*10/12 -> 4.05
A115: 1879.12 | B115: 4.92 | C115: 0.20 | D115: 0.38 | E115: 9.70 | F115: 1879.96 | G115: =G104*1/12+G116*11/12 -> 4.04
A116: 1880.01 | B116: 5.11 | C116: 0.21 | D116: 0.39 | E116: 9.99 | F116: 1880.04 | G116: 4.02
A117: 1880.02 | B117: 5.20 | C117: 0.21 | D117: 0.40 | E117: 9.99 | F117: 1880.12 | G117: =G116*11/12+G128*1/12 -> 3.99
A118: 1880.03 | B118: 5.30 | C118: 0.22 | D118: 0.41 | E118: 10.09 | F118: 1880.21 | G118: =G116*10/12+G128*2/12 -> 3.97
A119: 1880.04 | B119: 5.18 | C119: 0.22 | D119: 0.42 | E119: 9.70 | F119: 1880.29 | G119: =G116*9/12+G128*3/12 -> 3.94
A120: 1880.05 | B120: 4.77 | C120: 0.23 | D120: 0.43 | E120: 9.42 | F120: 1880.37 | G120: =G116*8/12+G128*4/12 -> 3.91
A121: 1880.06 | B121: 4.79 | C121: 0.23 | D121: 0.44 | E121: 9.23 | F121: 1880.46 | G121: =G116*7/12+G128*5/12 -> 3.89
A122: 1880.07 | B122: 5.01 | C122: 0.24 | D122: 0.44 | E122: 9.23 | F122: 1880.54 | G122: =G116*6/12+G128*6/12 -> 3.86
A123: 1880.08 | B123: 5.19 | C123: 0.24 | D123: 0.45 | E123: 9.23 | F123: 1880.62 | G123: =G116*5/12+G128*7/12 -> 3.83
A124: 1880.09 | B124: 5.18 | C124: 0.25 | D124: 0.46 | E124: 9.32 | F124: 1880.71 | G124: =G116*4/12+G128*8/12 -> 3.81
A125: 1880.10 | B125: 5.33 | C125: 0.25 | D125: 0.47 | E125: 9.32 | F125: 1880.79 | G125: =G116*3/12+G128*9/12 -> 3.78
A126: 1880.11 | B126: 5.61 | C126: 0.26 | D126: 0.48 | E126: 9.42 | F126: 1880.87 | G126: =G116*2/12+G128*10/12 -> 3.75
A127: 1880.12 | B127: 5.84 | C127: 0.26 | D127: 0.49 | E127: 9.51 | F127: 1880.96 | G127: =G116*1/12+G128*11/12 -> 3.73
A128: 1881.01 | B128: 6.19 | C128: 0.27 | D128: 0.49 | E128: 9.42 | F128: 1881.04 | G128: 3.70
A129: 1881.02 | B129: 6.17 | C129: 0.27 | D129: 0.48 | E129: 9.51 | F129: 1881.12 | G129: =G128*11/12+G140*1/12 -> 3.69
A130: 1881.03 | B130: 6.24 | C130: 0.28 | D130: 0.48 | E130: 9.51 | F130: 1881.21 | G130: =G128*10/12+G140*2/12 -> 3.69
A131: 1881.04 | B131: 6.22 | C131: 0.28 | D131: 0.47 | E131: 9.61 | F131: 1881.29 | G131: =G128*9/12+G140*3/12 -> 3.68
A132: 1881.05 | B132: 6.50 | C132: 0.29 | D132: 0.47 | E132: 9.51 | F132: 1881.37 | G132: =G128*8/12+G140*4/12 -> 3.67
A133: 1881.06 | B133: 6.58 | C133: 0.29 | D133: 0.47 | E133: 9.51 | F133: 1881.46 | G133: =G128*7/12+G140*5/12 -> 3.67
A134: 1881.07 | B134: 6.35 | C134: 0.30 | D134: 0.46 | E134: 9.61 | F134: 1881.54 | G134: =G128*6/12+G140*6/12 -> 3.66
A135: 1881.08 | B135: 6.20 | C135: 0.30 | D135: 0.46 | E135: 9.80 | F135: 1881.62 | G135: =G128*5/12+G140*7/12 -> 3.65
A136: 1881.09 | B136: 6.25 | C136: 0.31 | D136: 0.45 | E136: 10.18 | F136: 1881.71 | G136: =G128*4/12+G140*8/12 -> 3.65
A137: 1881.10 | B137: 6.15 | C137: 0.31 | D137: 0.45 | E137: 10.28 | F137: =F136+1/12 -> 1881.79 | G137: =G128*3/12+G140*9/12 -> 3.64
A138: 1881.11 | B138: 6.19 | C138: 0.32 | D138: 0.44 | E138: 10.18 | F138: 1881.87 | G138: =G128*2/12+G140*10/12 -> 3.63
A139: 1881.12 | B139: 6.01 | C139: 0.32 | D139: 0.44 | E139: 10.18 | F139: 1881.96 | G139: =G128*1/12+G140*11/12 -> 3.63
A140: 1882.01 | B140: 5.92 | C140: 0.32 | D140: 0.44 | E140: 10.18 | F140: 1882.04 | G140: 3.62
A141: 1882.02 | B141: 5.79 | C141: 0.32 | D141: 0.44 | E141: 10.28 | F141: 1882.12 | G141: =G140*11/12+G152*1/12 -> 3.62
A142: 1882.03 | B142: 5.78 | C142: 0.32 | D142: 0.44 | E142: 10.28 | F142: 1882.21 | G142: =G140*10/12+G152*2/12 -> 3.62
A143: 1882.04 | B143: 5.78 | C143: 0.32 | D143: 0.44 | E143: 10.37 | F143: 1882.29 | G143: =G140*9/12+G152*3/12 -> 3.62
A144: 1882.05 | B144: 5.71 | C144: 0.32 | D144: 0.44 | E144: 10.47 | F144: 1882.37 | G144: =G140*8/12+G152*4/12 -> 3.62
A145: 1882.06 | B145: 5.68 | C145: 0.32 | D145: 0.44 | E145: 10.56 | F145: 1882.46 | G145: =G140*7/12+G152*5/12 -> 3.62
A146: 1882.07 | B146: 6.00 | C146: 0.32 | D146: 0.43 | E146: 10.47 | F146: 1882.54 | G146: =G140*6/12+G152*6/12 -> 3.63
A147: 1882.08 | B147: 6.18 | C147: 0.32 | D147: 0.43 | E147: 10.56 | F147: 1882.62 | G147: =G140*5/12+G152*7/12 -> 3.63
A148: 1882.09 | B148: 6.24 | C148: 0.32 | D148: 0.43 | E148: 10.28 | F148: 1882.71 | G148: =G140*4/12+G152*8/12 -> 3.63
A149: 1882.10 | B149: 6.07 | C149: 0.32 | D149: 0.43 | E149: 10.18 | F149: 1882.79 | G149: =G140*3/12+G152*9/12 -> 3.63
A150: 1882.11 | B150: 5.81 | C150: 0.32 | D150: 0.43 | E150: 10.09 | F150: 1882.87 | G150: =G140*2/12+G152*10/12 -> 3.63
A151: 1882.12 | B151: 5.84 | C151: 0.32 | D151: 0.43 | E151: 9.99 | F151: 1882.96 | G151: =G140*1/12+G152*11/12 -> 3.63
A152: 1883.01 | B152: 5.81 | C152: 0.32 | D152: 0.43 | E152: 9.99 | F152: 1883.04 | G152: 3.63
A153: 1883.02 | B153: 5.68 | C153: 0.32 | D153: 0.43 | E153: 10.09 | F153: 1883.12 | G153: =G152*11/12+G164*1/12 -> 3.63
A154: 1883.03 | B154: 5.75 | C154: 0.32 | D154: 0.42 | E154: 9.99 | F154: 1883.21 | G154: =G152*10/12+G164*2/12 -> 3.63
A155: 1883.04 | B155: 5.87 | C155: 0.32 | D155: 0.42 | E155: 9.90 | F155: 1883.29 | G155: =G152*9/12+G164*3/12 -> 3.63
A156: 1883.05 | B156: 5.77 | C156: 0.32 | D156: 0.42 | E156: 9.80 | F156: 1883.37 | G156: =G152*8/12+G164*4/12 -> 3.63
A157: 1883.06 | B157: 5.82 | C157: 0.33 | D157: 0.42 | E157: 9.51 | F157: 1883.46 | G157: =G152*7/12+G164*5/12 -> 3.63
A158: 1883.07 | B158: 5.73 | C158: 0.33 | D158: 0.41 | E158: 9.32 | F158: 1883.54 | G158: =G152*6/12+G164*6/12 -> 3.63
A159: 1883.08 | B159: 5.47 | C159: 0.33 | D159: 0.41 | E159: 9.32 | F159: 1883.62 | G159: =G152*5/12+G164*7/12 -> 3.62
A160: 1883.09 | B160: 5.53 | C160: 0.33 | D160: 0.41 | E160: 9.23 | F160: 1883.71 | G160: =G152*4/12+G164*8/12 -> 3.62
A161: 1883.10 | B161: 5.38 | C161: 0.33 | D161: 0.41 | E161: 9.23 | F161: 1883.79 | G161: =G152*3/12+G164*9/12 -> 3.62
A162: 1883.11 | B162: 5.46 | C162: 0.33 | D162: 0.40 | E162: 9.13 | F162: 1883.87 | G162: =G152*2/12+G164*10/12 -> 3.62
A163: 1883.12 | B163: 5.34 | C163: 0.33 | D163: 0.40 | E163: 9.23 | F163: 1883.96 | G163: =G152*1/12+G164*11/12 -> 3.62
A164: 1884.01 | B164: 5.18 | C164: 0.33 | D164: 0.39 | E164: 9.23 | F164: 1884.04 | G164: 3.62
A165: 1884.02 | B165: 5.32 | C165: 0.33 | D165: 0.39 | E165: 9.23 | F165: 1884.12 | G165: =G164*11/12+G176*1/12 -> 3.61
A166: 1884.03 | B166: 5.30 | C166: 0.33 | D166: 0.38 | E166: 9.23 | F166: 1884.21 | G166: =G164*10/12+G176*2/12 -> 3.60
A167: 1884.04 | B167: 5.06 | C167: 0.32 | D167: 0.37 | E167: 9.04 | F167: 1884.29 | G167: =G164*9/12+G176*3/12 -> 3.60
A168: 1884.05 | B168: 4.65 | C168: 0.32 | D168: 0.36 | E168: 8.85 | F168: 1884.37 | G168: =G164*8/12+G176*4/12 -> 3.59
A169: 1884.06 | B169: 4.46 | C169: 0.32 | D169: 0.36 | E169: 8.85 | F169: 1884.46 | G169: =G164*7/12+G176*5/12 -> 3.58
A170: 1884.07 | B170: 4.46 | C170: 0.32 | D170: 0.35 | E170: 8.75 | F170: 1884.54 | G170: =G164*6/12+G176*6/12 -> 3.57
A171: 1884.08 | B171: 4.74 | C171: 0.32 | D171: 0.34 | E171: 8.75 | F171: 1884.62 | G171: =G164*5/12+G176*7/12 -> 3.56
A172: 1884.09 | B172: 4.59 | C172: 0.32 | D172: 0.33 | E172: 8.66 | F172: 1884.71 | G172: =G164*4/12+G176*8/12 -> 3.55
A173: 1884.10 | B173: 4.44 | C173: 0.31 | D173: 0.33 | E173: 8.56 | F173: 1884.79 | G173: =G164*3/12+G176*9/12 -> 3.55
A174: 1884.11 | B174: 4.35 | C174: 0.31 | D174: 0.32 | E174: 8.37 | F174: 1884.87 | G174: =G164*2/12+G176*10/12 -> 3.54
A175: 1884.12 | B175: 4.34 | C175: 0.31 | D175: 0.31 | E175: 8.28 | F175: 1884.96 | G175: =G164*1/12+G176*11/12 -> 3.53
A176: 1885.01 | B176: 4.24 | C176: 0.30 | D176: 0.31 | E176: 8.28 | F176: 1885.04 | G176: 3.52
A177: 1885.02 | B177: 4.37 | C177: 0.30 | D177: 0.30 | E177: 8.37 | F177: 1885.12 | G177: =G176*11/12+G188*1/12 -> 3.51
A178: 1885.03 | B178: 4.38 | C178: 0.29 | D178: 0.30 | E178: 8.18 | F178: 1885.21 | G178: =G176*10/12+G188*2/12 -> 3.50
A179: 1885.04 | B179: 4.37 | C179: 0.29 | D179: 0.30 | E179: 8.28 | F179: 1885.29 | G179: =G176*9/12+G188*3/12 -> 3.48
A180: 1885.05 | B180: 4.32 | C180: 0.28 | D180: 0.29 | E180: 8.09 | F180: 1885.37 | G180: =G176*8/12+G188*4/12 -> 3.47
A181: 1885.06 | B181: 4.30 | C181: 0.28 | D181: 0.29 | E181: 7.90 | F181: 1885.46 | G181: =G176*7/12+G188*5/12 -> 3.46
A182: 1885.07 | B182: 4.46 | C182: 0.27 | D182: 0.29 | E182: 7.99 | F182: 1885.54 | G182: =G176*6/12+G188*6/12 -> 3.45
A183: 1885.08 | B183: 4.71 | C183: 0.26 | D183: 0.28 | E183: 7.99 | F183: 1885.62 | G183: =G176*5/12+G188*7/12 -> 3.43
A184: 1885.09 | B184: 4.65 | C184: 0.26 | D184: 0.28 | E184: 7.90 | F184: 1885.71 | G184: =G176*4/12+G188*8/12 -> 3.42
A185: 1885.10 | B185: 4.92 | C185: 0.25 | D185: 0.28 | E185: 7.90 | F185: 1885.79 | G185: =G176*3/12+G188*9/12 -> 3.41
A186: 1885.11 | B186: 5.24 | C186: 0.25 | D186: 0.27 | E186: 7.99 | F186: 1885.87 | G186: =G176*2/12+G188*10/12 -> 3.40
A187: 1885.12 | B187: 5.20 | C187: 0.24 | D187: 0.27 | E187: 8.18 | F187: 1885.96 | G187: =G176*1/12+G188*11/12 -> 3.38
A188: 1886.01 | B188: 5.20 | C188: 0.24 | D188: 0.28 | E188: 7.99 | F188: 1886.04 | G188: 3.37
A189: 1886.02 | B189: 5.30 | C189: 0.24 | D189: 0.28 | E189: 7.99 | F189: 1886.12 | G189: =G188*11/12+G200*1/12 -> 3.38
A190: 1886.03 | B190: 5.19 | C190: 0.24 | D190: 0.29 | E190: 7.90 | F190: 1886.21 | G190: =G188*10/12+G200*2/12 -> 3.40
A191: 1886.04 | B191: 5.12 | C191: 0.23 | D191: 0.29 | E191: 7.80 | F191: 1886.29 | G191: =G188*9/12+G200*3/12 -> 3.41
A192: 1886.05 | B192: 5.02 | C192: 0.23 | D192: 0.30 | E192: 7.61 | F192: 1886.37 | G192: =G188*8/12+G200*4/12 -> 3.42
A193: 1886.06 | B193: 5.25 | C193: 0.23 | D193: 0.30 | E193: 7.52 | F193: 1886.46 | G193: =G188*7/12+G200*5/12 -> 3.43
A194: 1886.07 | B194: 5.33 | C194: 0.23 | D194: 0.31 | E194: 7.61 | F194: 1886.54 | G194: =G188*6/12+G200*6/12 -> 3.45
A195: 1886.08 | B195: 5.37 | C195: 0.23 | D195: 0.31 | E195: 7.71 | F195: 1886.62 | G195: =G188*5/12+G200*7/12 -> 3.46
A196: 1886.09 | B196: 5.51 | C196: 0.23 | D196: 0.32 | E196: 7.71 | F196: 1886.71 | G196: =G188*4/12+G200*8/12 -> 3.47
A197: 1886.10 | B197: 5.65 | C197: 0.22 | D197: 0.32 | E197: 7.71 | F197: 1886.79 | G197: =G188*3/12+G200*9/12 -> 3.48
A198: 1886.11 | B198: 5.79 | C198: 0.22 | D198: 0.33 | E198: 7.71 | F198: 1886.87 | G198: =G188*2/12+G200*10/12 -> 3.50
A199: 1886.12 | B199: 5.64 | C199: 0.22 | D199: 0.33 | E199: 7.80 | F199: 1886.96 | G199: =G188*1/12+G200*11/12 -> 3.51
A200: 1887.01 | B200: 5.58 | C200: 0.22 | D200: 0.33 | E200: 7.99 | F200: 1887.04 | G200: 3.52
A201: 1887.02 | B201: 5.54 | C201: 0.23 | D201: 0.34 | E201: 8.09 | F201: =F200+1/12 -> 1887.12 | G201: =G200*11/12+G212*1/12 -> 3.53
... 1583 more rows

Sheet Transactioncosts
A1: Avg in BP 1925-2000 | B1: =AVERAGE(G56:G131) -> 84.88 | C1: Year | D1: Estimated TC in BP per anchorpoint | E1: Slope btw. Anchorpoints | F1: Interpolated TC in BP per year | G1: Transactioncosts per year | I1: Year | J1: Estimated TC in BP | K1: Slope btw. Anchorpoints | L1: Interpolated TC in BP per year
A2: Anchorpoint: | B2: 1 | C2: 1871 | D2: 70 | E2: 0 | G2: =IF(F2="",D2,F2) -> 70 | I2: 1871 | J2: 70 | L2: =IF(J2<>"-",J2,L1+K2) -> 70
C3: 1872 | D3: - | E3: =(D31-D2)/(C31-C2) -> 0 | F3: =IF(D3<>"-",D3,G2+E3) -> 70 | G3: 70 | I3: 1872-1899 | J3: - | K3: 0 | L3: =TEXT(L2+K3,0)&"-"&TEXT(L4-K3,0) -> 70-70
C4: 1873 | D4: - | E4: =E3 -> 0 | F4: =IF(D4<>"-",D4,G3+E4) -> 70 | G4: =IF(F4="",D4,F4) -> 70 | I4: 1900 | J4: 70 | L4: =IF(J4<>"-",J4,L3+K4) -> 70
C5: 1874 | D5: - | E5: =E4 -> 0 | F5: 70 | G5: 70 | I5: 1901 | K5: =(J6-J4)/(I6-I4) -> 15 | L5: =TEXT(L4+K5,0)&"-"&TEXT(L6-K5,0) -> 85-85
C6: 1875 | D6: - | E6: 0 | F6: 70 | G6: 70 | I6: 1902 | J6: 100 | L6: =IF(J6<>"-",J6,L5+K6) -> 100
C7: 1876 | D7: - | E7: 0 | F7: 70 | G7: 70 | I7: 1903-1904 | K7: =(J8-J6)/(I8-I6) -> -23 | L7: =TEXT(L6+K7,0)&"-"&TEXT(L8-K7,0) -> 77-53
C8: 1877 | D8: - | E8: 0 | F8: 70 | G8: 70 | I8: 1905 | J8: 30 | L8: =IF(J8<>"-",J8,L7+K8) -> 30
C9: 1878 | D9: - | E9: 0 | F9: 70 | G9: 70 | I9: 1906 | K9: =(J10-J8)/(I10-I8) -> 23 | L9: =TEXT(L8+K9,0)&"-"&TEXT(L10-K9,0) -> 53-53
C10: 1879 | D10: - | E10: 0 | F10: 70 | G10: 70 | I10: 1907 | J10: 75 | L10: =IF(J10<>"-",J10,L9+K10) -> 75
C11: 1880 | D11: - | E11: 0 | F11: 70 | G11: 70 | I11: 1908-1909 | K11: =(J12-J10)/(I12-I10) -> -8 | L11: =TEXT(L10+K11,0)&"-"&TEXT(L12-K11,0) -> 67-58
C12: 1881 | D12: - | E12: 0 | F12: 70 | G12: 70 | I12: 1910 | J12: 50 | L12: =IF(J12<>"-",J12,L11+K12) -> 50
C13: 1882 | D13: - | E13: 0 | F13: 70 | G13: 70 | I13: 1911-1914 | K13: =(J14-J12)/(I14-I12) -> 10 | L13: =TEXT(L12+K13,0)&"-"&TEXT(L14-K13,0) -> 60-90
C14: 1883 | D14: - | E14: 0 | F14: 70 | G14: 70 | I14: 1915 | J14: 100 | L14: =IF(J14<>"-",J14,L13+K14) -> 100
C15: 1884 | D15: - | E15: 0 | F15: 70 | G15: 70 | I15: 1916-1924 | K15: =(J16-J14)/(I16-I14) -> -5 | L15: =TEXT(L14+K15,0)&"-"&TEXT(L16-K15,0) -> 95-55
C16: 1885 | D16: - | E16: 0 | F16: 70 | G16: 70 | I16: 1925 | J16: 50 | L16: =IF(J16<>"-",J16,L3+K16) -> 50
C17: 1886 | D17: - | E17: 0 | F17: 70 | G17: 70 | I17: 1926-1929 | J17: - | K17: =(J18-J16)/(I18-I16) -> 2 | L17: =TEXT(L16+K17,0)&"-"&TEXT(L18-K17,0) -> 52-60
C18: 1887 | D18: - | E18: 0 | F18: 70 | G18: 70 | I18: 1930 | J18: 62 | L18: =IF(J18<>"-",J18,L17+K18) -> 62
C19: 1888 | D19: - | E19: 0 | F19: 70 | G19: 70 | I19: =TEXT(I18,0)&"-"&TEXT(I20,0) -> 1930-1933 | J19: - | K19: =(J20-J18)/(I20-I18) -> 26 | L19: =TEXT(L18+K19,0)&"-"&TEXT(L20-K19,0) -> 88-113
C20: 1889 | D20: - | E20: 0 | F20: 70 | G20: 70 | I20: 1933 | J20: 139 | L20: =IF(J20<>"-",J20,L19+K20) -> 139
C21: 1890 | D21: - | E21: 0 | F21: 70 | G21: 70 | I21: =TEXT(I20,0)&"-"&TEXT(I22,0) -> 1933-1935 | J21: - | K21: =(J22-J20)/(I22-I20) -> -25 | L21: =TEXT(L20+K21,0)&"-"&TEXT(L22-K21,0) -> 115-115
C22: 1891 | D22: - | E22: 0 | F22: 70 | G22: 70 | I22: 1935 | J22: 90 | L22: =IF(J22<>"-",J22,L21+K22) -> 90
C23: 1892 | D23: - | E23: 0 | F23: 70 | G23: 70 | I23: =TEXT(I22,0)&"-"&TEXT(I24,0) -> 1935-1940 | J23: - | K23: =(J24-J22)/(I24-I22) -> 0 | L23: =TEXT(L22+K23,0)&"-"&TEXT(L24-K23,0) -> 90-91
C24: 1893 | D24: - | E24: 0 | F24: 70 | G24: 70 | I24: 1940 | J24: 91 | L24: =IF(J24<>"-",J24,L23+K24) -> 91
C25: 1894 | D25: - | E25: 0 | F25: 70 | G25: 70 | I25: =TEXT(I24,0)&"-"&TEXT(I26,0) -> 1940-1945 | J25: - | K25: =(J26-J24)/(I26-I24) -> -0 | L25: =TEXT(L24+K25,0)&"-"&TEXT(L26-K25,0) -> 91-89
C26: 1895 | D26: - | E26: 0 | F26: 70 | G26: 70 | I26: 1945 | J26: 89 | L26: =IF(J26<>"-",J26,L25+K26) -> 89
C27: 1896 | D27: - | E27: 0 | F27: 70 | G27: 70 | I27: =TEXT(I26,0)&"-"&TEXT(I28,0) -> 1945-1950 | J27: - | K27: =(J28-J26)/(I28-I26) -> 1 | L27: =TEXT(L26+K27,0)&"-"&TEXT(L28-K27,0) -> 90-95
C28: 1897 | D28: - | E28: 0 | F28: 70 | G28: 70 | I28: 1950 | J28: 96 | L28: =IF(J28<>"-",J28,#REF!+K28) -> 96
C29: 1898 | D29: - | E29: 0 | F29: 70 | G29: 70 | I29: =TEXT(I28,0)&"-"&TEXT(I30,0) -> 1950-1955 | J29: - | K29: =(J30-J28)/(I30-I28) -> 1 | L29: =TEXT(L28+K29,0)&"-"&TEXT(L30-K29,0) -> 97-99
C30: 1899 | D30: - | E30: 0 | F30: 70 | G30: 70 | I30: 1955 | J30: 100 | L30: =IF(J30<>"-",J30,#REF!+K30) -> 100
A31: Anchorpoint: | B31: 2 | C31: 1900 | D31: 70 | E31: 0 | G31: 70 | I31: =TEXT(I30,0)&"-"&TEXT(I32,0) -> 1955-1960 | J31: - | K31: =(J32-J30)/(I32-I30) -> 1 | L31: =TEXT(L30+K31,0)&"-"&TEXT(L32-K31,0) -> 101-106
C32: 1901 | D32: - | E32: =(D33-D31)/(C33-C31) -> 15 | F32: =IF(D32<>"-",D32,G31+E32) -> 85 | G32: 85 | I32: 1960 | J32: 107 | L32: =IF(J32<>"-",J32,#REF!+K32) -> 107
A33: Anchorpoint: | B33: 3 | C33: 1902 | D33: 100 | G33: =IF(F33="",D33,F33) -> 100 | I33: =TEXT(I32,0)&"-"&TEXT(I34,0) -> 1960-1965 | J33: - | K33: =(J34-J32)/(I34-I32) -> 1 | L33: =TEXT(L32+K33,0)&"-"&TEXT(L34-K33,0) -> 108-109
C34: 1903 | D34: - | E34: =(D33-D36)/(C33-C36) -> -23 | F34: =IF(D34<>"-",D34,G33+E34) -> 77 | G34: 77 | I34: 1965 | J34: 110 | L34: =IF(J34<>"-",J34,#REF!+K34) -> 110
C35: 1904 | D35: - | E35: -23 | F35: =IF(D35<>"-",D35,G34+E35) -> 53 | G35: 53 | I35: =TEXT(I34,0)&"-"&TEXT(I36,0) -> 1965-1970 | J35: - | K35: =(J36-J34)/(I36-I34) -> 0 | L35: =TEXT(L34+K35,0)&"-"&TEXT(L36-K35,0) -> 110-112
A36: Anchorpoint: | B36: 4 | C36: 1905 | D36: 30 | G36: =IF(F36="",D36,F36) -> 30 | I36: 1970 | J36: 112 | L36: =IF(J36<>"-",J36,#REF!+K36) -> 112
C37: 1906 | D37: - | E37: =(D36-D38)/(C36-C38) -> 23 | F37: =IF(D37<>"-",D37,G36+E37) -> 53 | G37: 53 | I37: =TEXT(I36,0)&"-"&TEXT(I38,0) -> 1970-1975 | J37: - | K37: =(J38-J36)/(I38-I36) -> 2 | L37: =TEXT(L36+K37,0)&"-"&TEXT(L38-K37,0) -> 114-118
A38: Anchorpoint: | B38: 5 | C38: 1907 | D38: 75 | G38: =IF(F38="",D38,F38) -> 75 | I38: 1975 | J38: 120 | L38: =IF(J38<>"-",J38,#REF!+K38) -> 120
C39: 1908 | D39: - | E39: =(D38-D41)/(C38-C41) -> -8 | F39: =IF(D39<>"-",D39,G38+E39) -> 67 | G39: 67 | I39: =TEXT(I38,0)&"-"&TEXT(I40,0) -> 1975-1980 | J39: - | K39: =(J40-J38)/(I40-I38) -> -7 | L39: =TEXT(L38+K39,0)&"-"&TEXT(L40-K39,0) -> 113-92
C40: 1909 | D40: - | E40: -8 | F40: =IF(D40<>"-",D40,G39+E40) -> 58 | G40: 58 | I40: 1980 | J40: 85 | L40: =IF(J40<>"-",J40,#REF!+K40) -> 85
A41: Anchorpoint: | B41: 6 | C41: 1910 | D41: 50 | G41: =IF(F41="",D41,F41) -> 50 | I41: =TEXT(I40,0)&"-"&TEXT(I42,0) -> 1980-1985 | J41: - | K41: =(J42-J40)/(I42-I40) -> -5 | L41: =TEXT(L40+K41,0)&"-"&TEXT(L42-K41,0) -> 80-65
C42: 1911 | D42: - | E42: =(D41-D46)/(C41-C46) -> 10 | F42: =IF(D42<>"-",D42,G41+E42) -> 60 | G42: 60 | I42: 1985 | J42: 60 | L42: =IF(J42<>"-",J42,#REF!+K42) -> 60
C43: 1912 | D43: - | E43: 10 | F43: =IF(D43<>"-",D43,G42+E43) -> 70 | G43: 70 | I43: =TEXT(I42,0)&"-"&TEXT(I44,0) -> 1985-1990 | J43: - | K43: =(J44-J42)/(I44-I42) -> -1 | L43: =TEXT(L42+K43,0)&"-"&TEXT(L44-K43,0) -> 59-54
C44: 1913 | D44: - | E44: 10 | F44: =IF(D44<>"-",D44,G43+E44) -> 80 | G44: 80 | I44: 1990 | J44: 53 | L44: =IF(J44<>"-",J44,#REF!+K44) -> 53
C45: 1914 | D45: - | E45: 10 | F45: =IF(D45<>"-",D45,G44+E45) -> 90 | G45: 90 | I45: =TEXT(I44,0)&"-"&TEXT(I46,0) -> 1990-1995 | J45: - | K45: =(J46-J44)/(I46-I44) -> -3 | L45: =TEXT(L44+K45,0)&"-"&TEXT(L46-K45,0) -> 50-40
A46: Anchorpoint: | B46: 7 | C46: 1915 | D46: 100 | E46: 10 | G46: 100 | I46: 1995 | J46: 37 | L46: =IF(J46<>"-",J46,L51+K46) -> 37
C47: 1916 | D47: - | E47: =(D46-D56)/(C46-C56) -> -5 | F47: =IF(D47<>"-",D47,G46+E47) -> 95 | G47: 95 | I47: =TEXT(I46,0)&"-"&TEXT(I48,0) -> 1995-2000 | J47: - | K47: =(J48-J46)/(I48-I46) -> -3 | L47: =TEXT(L46+K47,0)&"-"&TEXT(L48-K47,0) -> 34-23
C48: 1917 | D48: - | E48: -5 | F48: 90 | G48: 90 | I48: 2000 | J48: 20 | L48: =IF(J48<>"-",J48,#REF!+K48) -> 20
C49: 1918 | D49: - | E49: -5 | F49: 85 | G49: 85 | I49: =TEXT(I48,0)&"-"&TEXT(I50,0) -> 2000-2018 | J49: - | K49: 0 | L49: =TEXT(L48+K49,0)&"-"&TEXT(L50-K49,0) -> 20-20
C50: 1919 | D50: - | E50: -5 | F50: 80 | G50: 80 | I50: 2018 | J50: - | L50: 20
C51: 1920 | D51: - | E51: -5 | F51: 75 | G51: 75
C52: 1921 | D52: - | E52: -5 | F52: 70 | G52: 70
C53: 1922 | D53: - | E53: -5 | F53: 65 | G53: 65
C54: 1923 | D54: - | E54: -5 | F54: 60 | G54: 60
C55: 1924 | D55: - | E55: -5 | F55: 55 | G55: 55
A56: Anchorpoint: | B56: 8 | C56: 1925 | D56: 50 | G56: 50
C57: 1926 | D57: - | E57: =(D56-D61)/(C56-C61) -> 2 | F57: =IF(D57<>"-",D57,G56+E57) -> 52 | G57: 52
C58: 1927 | D58: - | E58: =E57 -> 2 | F58: =IF(D58<>"-",D58,G57+E58) -> 55 | G58: 55
C59: 1928 | D59: - | E59: =E58 -> 2 | F59: =IF(D59<>"-",D59,G58+E59) -> 57 | G59: 57
C60: 1929 | D60: - | E60: =E59 -> 2 | F60: =IF(D60<>"-",D60,G59+E60) -> 60 | G60: 60
A61: Anchorpoint: | B61: 9 | C61: 1930 | D61: 62 | G61: 62
C62: 1931 | D62: - | E62: =(D63-D61)/(C63-C61) -> 39 | F62: =IF(D62<>"-",D62,G61+E62) -> 101 | G62: 101
A63: Anchorpoint: | B63: 10 | C63: 1932 | D63: 139 | G63: 139
C64: 1933 | D64: - | E64: =(D66-D63)/(C66-C63) -> -16 | F64: =IF(D64<>"-",D64,G63+E64) -> 123 | G64: 123
C65: 1934 | D65: - | E65: 0 | F65: =IF(D65<>"-",D65,G64+E65) -> 123 | G65: 123
A66: Anchorpoint: | B66: 11 | C66: 1935 | D66: 90 | G66: 90
C67: 1936 | D67: - | E67: =(D71-D66)/(C71-C66) -> 0 | F67: =IF(D67<>"-",D67,G66+E67) -> 90 | G67: =IF(F67="",D67,F67) -> 90
C68: 1937 | D68: - | E68: =E67 -> 0 | F68: =IF(D68<>"-",D68,G67+E68) -> 90 | G68: 90
C69: 1938 | D69: - | E69: =E68 -> 0 | F69: =IF(D69<>"-",D69,G68+E69) -> 91 | G69: 91
C70: 1939 | D70: - | E70: =E69 -> 0 | F70: =IF(D70<>"-",D70,G69+E70) -> 91 | G70: 91
A71: Anchorpoint: | B71: 12 | C71: 1940 | D71: 91 | G71: 91
C72: 1941 | D72: - | E72: =(D76-D71)/(C76-C71) -> -0 | F72: =IF(D72<>"-",D72,G71+E72) -> 91 | G72: 91
C73: 1942 | D73: - | E73: =E72 -> -0 | F73: =IF(D73<>"-",D73,G72+E73) -> 90 | G73: 90
C74: 1943 | D74: - | E74: =E73 -> -0 | F74: =IF(D74<>"-",D74,G73+E74) -> 90 | G74: 90
C75: 1944 | D75: - | E75: =E74 -> -0 | F75: =IF(D75<>"-",D75,G74+E75) -> 89 | G75: 89
A76: Anchorpoint: | B76: 13 | C76: 1945 | D76: 89 | G76: 89
C77: 1946 | D77: - | E77: =(D81-D76)/(C81-C76) -> 1 | F77: =IF(D77<>"-",D77,G76+E77) -> 90 | G77: 90
C78: 1947 | D78: - | E78: =E77 -> 1 | F78: =IF(D78<>"-",D78,G77+E78) -> 92 | G78: 92
C79: 1948 | D79: - | E79: =E78 -> 1 | F79: =IF(D79<>"-",D79,G78+E79) -> 93 | G79: 93
C80: 1949 | D80: - | E80: =E79 -> 1 | F80: =IF(D80<>"-",D80,G79+E80) -> 95 | G80: 95
A81: Anchorpoint: | B81: 14 | C81: 1950 | D81: 96 | G81: 96
C82: 1951 | D82: - | E82: =(D86-D81)/(C86-C81) -> 1 | F82: =IF(D82<>"-",D82,G81+E82) -> 97 | G82: 97
C83: 1952 | D83: - | E83: =E82 -> 1 | F83: =IF(D83<>"-",D83,G82+E83) -> 98 | G83: 98
C84: 1953 | D84: - | E84: =E83 -> 1 | F84: =IF(D84<>"-",D84,G83+E84) -> 98 | G84: 98
C85: 1954 | D85: - | E85: =E84 -> 1 | F85: =IF(D85<>"-",D85,G84+E85) -> 99 | G85: 99
A86: Anchorpoint: | B86: 15 | C86: 1955 | D86: 100 | G86: 100
C87: 1956 | D87: - | E87: =(D91-D86)/(C91-C86) -> 1 | F87: =IF(D87<>"-",D87,G86+E87) -> 101 | G87: 101
C88: 1957 | D88: - | E88: =E87 -> 1 | F88: =IF(D88<>"-",D88,G87+E88) -> 103 | G88: 103
C89: 1958 | D89: - | E89: =E88 -> 1 | F89: =IF(D89<>"-",D89,G88+E89) -> 104 | G89: 104
C90: 1959 | D90: - | E90: =E89 -> 1 | F90: =IF(D90<>"-",D90,G89+E90) -> 106 | G90: 106
A91: Anchorpoint: | B91: 16 | C91: 1960 | D91: 107 | G91: 107
C92: 1961 | D92: - | E92: =(D96-D91)/(C96-C91) -> 1 | F92: =IF(D92<>"-",D92,G91+E92) -> 108 | G92: 108
C93: 1962 | D93: - | E93: =E92 -> 1 | F93: =IF(D93<>"-",D93,G92+E93) -> 108 | G93: 108
C94: 1963 | D94: - | E94: =E93 -> 1 | F94: =IF(D94<>"-",D94,G93+E94) -> 109 | G94: 109
C95: 1964 | D95: - | E95: =E94 -> 1 | F95: =IF(D95<>"-",D95,G94+E95) -> 109 | G95: 109
A96: Anchorpoint: | B96: 17 | C96: 1965 | D96: 110 | G96: 110
C97: 1966 | D97: - | E97: =(D101-D96)/(C101-C96) -> 0 | F97: =IF(D97<>"-",D97,G96+E97) -> 110 | G97: 110
C98: 1967 | D98: - | E98: =E97 -> 0 | F98: =IF(D98<>"-",D98,G97+E98) -> 111 | G98: 111
C99: 1968 | D99: - | E99: =E98 -> 0 | F99: =IF(D99<>"-",D99,G98+E99) -> 111 | G99: 111
C100: 1969 | D100: - | E100: =E99 -> 0 | F100: =IF(D100<>"-",D100,G99+E100) -> 112 | G100: 112
A101: Anchorpoint: | B101: 18 | C101: 1970 | D101: 112 | G101: 112
C102: 1971 | D102: - | E102: =(D106-D101)/(C106-C101) -> 2 | F102: =IF(D102<>"-",D102,G101+E102) -> 114 | G102: 114
C103: 1972 | D103: - | E103: =E102 -> 2 | F103: =IF(D103<>"-",D103,G102+E103) -> 115 | G103: 115
C104: 1973 | D104: - | E104: =E103 -> 2 | F104: =IF(D104<>"-",D104,G103+E104) -> 117 | G104: 117
C105: 1974 | D105: - | E105: =E104 -> 2 | F105: =IF(D105<>"-",D105,G104+E105) -> 118 | G105: 118
A106: Anchorpoint: | B106: 19 | C106: 1975 | D106: 120 | G106: 120
C107: 1976 | D107: - | E107: =(D111-D106)/(C111-C106) -> -7 | F107: =IF(D107<>"-",D107,G106+E107) -> 113 | G107: 113
C108: 1977 | D108: - | E108: =E107 -> -7 | F108: =IF(D108<>"-",D108,G107+E108) -> 106 | G108: 106
C109: 1978 | D109: - | E109: =E108 -> -7 | F109: =IF(D109<>"-",D109,G108+E109) -> 99 | G109: 99
C110: 1979 | D110: - | E110: =E109 -> -7 | F110: =IF(D110<>"-",D110,G109+E110) -> 92 | G110: 92
A111: Anchorpoint: | B111: 20 | C111: 1980 | D111: 85 | G111: 85
C112: 1981 | D112: - | E112: =(D116-D111)/(C116-C111) -> -5 | F112: =IF(D112<>"-",D112,G111+E112) -> 80 | G112: 80
C113: 1982 | D113: - | E113: =E112 -> -5 | F113: =IF(D113<>"-",D113,G112+E113) -> 75 | G113: 75
C114: 1983 | D114: - | E114: =E113 -> -5 | F114: =IF(D114<>"-",D114,G113+E114) -> 70 | G114: 70
C115: 1984 | D115: - | E115: =E114 -> -5 | F115: =IF(D115<>"-",D115,G114+E115) -> 65 | G115: 65
A116: Anchorpoint: | B116: 21 | C116: 1985 | D116: 60 | G116: 60
C117: 1986 | D117: - | E117: =(D121-D116)/(C121-C116) -> -1 | F117: =IF(D117<>"-",D117,G116+E117) -> 59 | G117: 59
C118: 1987 | D118: - | E118: =E117 -> -1 | F118: =IF(D118<>"-",D118,G117+E118) -> 57 | G118: 57
C119: 1988 | D119: - | E119: =E118 -> -1 | F119: =IF(D119<>"-",D119,G118+E119) -> 56 | G119: 56
C120: 1989 | D120: - | E120: =E119 -> -1 | F120: =IF(D120<>"-",D120,G119+E120) -> 54 | G120: 54
A121: Anchorpoint: | B121: 22 | C121: 1990 | D121: 53 | G121: 53
C122: 1991 | D122: - | E122: =(D126-D121)/(C126-C121) -> -3 | F122: =IF(D122<>"-",D122,G121+E122) -> 50 | G122: 50
C123: 1992 | D123: - | E123: =E122 -> -3 | F123: =IF(D123<>"-",D123,G122+E123) -> 47 | G123: 47
C124: 1993 | D124: - | E124: =E123 -> -3 | F124: =IF(D124<>"-",D124,G123+E124) -> 43 | G124: 43
C125: 1994 | D125: - | E125: =E124 -> -3 | F125: =IF(D125<>"-",D125,G124+E125) -> 40 | G125: 40
A126: Anchorpoint: | B126: 23 | C126: 1995 | D126: 37 | G126: 37
C127: 1996 | D127: - | E127: =(D131-D126)/(C131-C126) -> -3 | F127: =IF(D127<>"-",D127,G126+E127) -> 34 | G127: 34
C128: 1997 | D128: - | E128: =E127 -> -3 | F128: =IF(D128<>"-",D128,G127+E128) -> 30 | G128: 30
C129: 1998 | D129: - | E129: =E128 -> -3 | F129: =IF(D129<>"-",D129,G128+E129) -> 27 | G129: 27
C130: 1999 | D130: - | E130: =E129 -> -3 | F130: =IF(D130<>"-",D130,G129+E130) -> 23 | G130: 23
A131: Anchorpoint: | B131: 24 | C131: 2000 | D131: 20 | G131: =IF(F131="",D131,F131) -> 20
C132: 2001 | D132: - | E132: 0 | F132: =IF(D132<>"-",D132,G131+E132) -> 20 | G132: 20
C133: 2002 | D133: - | E133: 0 | F133: 20 | G133: 20
C134: 2003 | D134: - | E134: 0 | F134: 20 | G134: 20
C135: 2004 | D135: - | E135: 0 | F135: 20 | G135: 20
C136: 2005 | D136: - | E136: 0 | F136: 20 | G136: 20
C137: 2006 | D137: - | E137: 0 | F137: 20 | G137: 20
C138: 2007 | D138: - | E138: 0 | F138: 20 | G138: 20
C139: 2008 | D139: - | E139: 0 | F139: 20 | G139: 20
C140: 2009 | D140: - | E140: 0 | F140: 20 | G140: 20
C141: 2010 | D141: - | E141: 0 | F141: 20 | G141: 20
C142: 2011 | D142: - | E142: 0 | F142: 20 | G142: 20
C143: 2012 | D143: - | E143: 0 | F143: 20 | G143: 20
C144: 2013 | D144: - | E144: 0 | F144: 20 | G144: 20
C145: 2014 | D145: - | E145: 0 | F145: 20 | G145: 20
C146: 2015 | D146: - | E146: 0 | F146: 20 | G146: 20
C147: 2016 | D147: - | E147: 0 | F147: 20 | G147: 20
C148: 2017 | D148: - | E148: 0 | F148: 20 | G148: 20
A149: Anchorpoint: | B149: 25 | C149: 2018 | D149: 20 | G149: 20
